bitfinex-derivatives/quotes_SOLF0:USTF0_20241224
["timestamp","ask_amount","ask_price","bid_price","bid_amount"]
[1735076779143,3.2,196.74,196.67,8.0009956]
[1735076779445,11.2009956,196.74,196.67,8.0009956]
[1735076779641,39.60624242,196.76,196.67,8.0009956]
[1735076779848,8.0009956,196.74,196.67,8.0009956]
[1735076780249,2.5437,196.71,196.67,8.0009956]
[1735076780545,8.0009956,196.74,196.67,8.0009956]
[1735076780749,8.0009956,196.72,196.58,3.1755]
[1735076780947,2.5442,196.67,196.65,8.0009956]
[1735076783151,8.0009956,196.7,196.59,3.2]
[1735076783349,8.0009956,196.7,196.62,8.0009956]
[1735076783655,8.0009956,196.68,196.62,8.0009956]
[1735076784353,2.5443,196.67,196.62,8.0009956]
[1735076784554,8.0009956,196.68,196.62,8.0009956]
[1735076785252,2.5443,196.67,196.62,8.0009956]
[1735076785449,8.0009956,196.68,196.62,8.0009956]
[1735076786447,2.5447,196.63,196.62,8.0009956]
[1735076787853,3.2,196.73,196.62,8.0009956]
[1735076788047,3.2,196.73,196.67,8.0009956]
[1735076788352,8.0009956,196.74,196.67,8.0009956]
[1735076788550,2.5438,196.7,196.69,8.0009956]
[1735076790953,2.5435,196.72,196.69,8.0009956]
[1735076794453,8.0009956,196.74,196.65,1.5911]
[1735076794649,2.5443,196.66,196.65,1.5911]
[1735076799763,2.5443,196.67,196.65,1.5911]
[1735076804263,2.5443,196.66,196.65,1.5911]
[1735076804963,8.0009956,196.73,196.65,1.5911]
[1735076805170,2.5441,196.68,196.66,8.0009956]
[1735076805375,8.0009956,196.73,196.66,8.0009956]
[1735076806570,2.5443,196.67,196.65,1.5911]
[1735076807471,2.5443,196.66,196.65,1.5911]
[1735076812871,2.5447,196.63,196.62,8.0009956]
[1735076818279,2.5444,196.66,196.62,8.0009956]
[1735076818581,2.5444,196.66,196.65,8.0009956]
[1735076821886,11.2009956,196.72,196.63,8.0009956]
[1735076822082,2.5445,196.65,196.63,8.0009956]
[1735076822283,8.0009956,196.72,196.63,10.5456956]
[1735076822482,11.2009956,196.72,196.65,8.0009956]
[1735076822681,11.2009956,196.74,196.65,8.0009956]
[1735076822883,11.2009956,196.74,196.66,1.5011]
[1735076823186,2.5436,196.72,196.66,1.5011]
[1735076823388,11.2009956,196.74,196.66,1.5011]
[1735076823785,8.0009956,196.74,196.66,1.5011]
[1735076824087,11.2009956,196.74,196.66,1.5011]
[1735076824590,2.544,196.69,196.66,9.5020956]
[1735076827187,2.5442,196.67,196.66,9.5020956]
[1735076827892,2.5442,196.67,196.66,1.5011]
[1735076832895,36.12594577,196.77,196.66,1.5011]
[1735076833090,8.0009956,196.75,196.66,9.5020956]
[1735076833299,8.0009956,196.75,196.68,8.0009956]
[1735076833508,2.5438,196.7,196.68,8.0009956]
[1735076834297,21.27902452,196.81,196.68,8.0009956]
[1735076834502,29.28002012,196.83,196.74,8.0009956]
[1735076835193,32.48002012,196.83,196.74,8.0009956]
[1735076835803,11.2009956,196.83,196.74,8.0009956]
[1735076836103,8.0009956,196.79,196.72,8.0009956]
[1735076838108,2.5433,196.74,196.72,8.0009956]
[1735076838609,8.0009956,196.79,196.72,8.0009956]
[1735076839409,2.5431,196.76,196.72,9.6378956]
[1735076842013,1.5975,196.87,196.74,8.0009956]
[1735076842209,8.0009956,196.87,196.8,8.0009956]
[1735076842915,2.5419,196.85,196.8,8.0009956]
[1735076843114,8.0009956,196.87,196.8,8.0009956]
[1735076843821,2.5418,196.86,196.8,10.5433956]
[1735076844018,2.5418,196.86,196.81,1.5756]
[1735076844216,8.0009956,196.88,196.81,1.5756]
[1735076844413,21.27902452,197.02,196.87,8.0009956]
[1735076844713,29.28002012,197.02,196.94,8.0009956]
[1735076845119,2.5403,196.98,196.94,8.0009956]
[1735076845417,2.5403,196.98,196.96,8.0009956]
[1735076845625,21.27902452,197.02,196.91,1.5756]
[1735076845918,29.28002012,197.02,196.94,8.0009956]
[1735076846113,21.27902452,197.02,196.91,13.95907534]
[1735076846315,13.97937534,197.05,196.91,13.95907534]
[1735076846522,2.5398,197.01,196.94,12.38347534]
[1735076847120,1.5959,197.05,196.97,12.38347534]
[1735076847517,1.5959,197.05,196.96,3.2]
[1735076847725,2.5396,197.03,196.96,3.2]
[1735076848316,2.12759899,197.09,196.98,2.5402]
[1735076848317,2.5394,197.05,196.98,2.5402]
[1735076848516,2.12759899,197.09,196.96,12.38347534]
[1735076848720,2.12759899,197.09,196.97,3.2]
[1735076849120,2.5395,197.04,196.97,3.2]
[1735076849824,2.5395,197.04,196.97,5.7403]
[1735076851122,2.5395,197.04,196.97,7.3308]
[1735076851319,2.5392,197.06,196.99,12.38347534]
[1735076851526,2.5392,197.06,197.0,1.5068]
[1735076851826,2.5393,197.05,197.0,1.5068]
[1735076852121,2.12759899,197.09,197.0,1.5068]
[1735076852323,2.5392,197.06,197.0,4.0467]
[1735076854328,2.5393,197.05,197.0,1.5068]
[1735076856428,2.5393,197.05,197.0,4.0467]
[1735076857531,2.5394,197.04,197.0,1.5068]
[1735076857730,14.51107433,197.09,197.0,1.5068]
[1735076858531,2.5396,197.03,197.0,1.5068]
[1735076859130,14.51107433,197.09,197.0,1.5068]
[1735076859326,2.5398,197.01,197.0,1.5068]
[1735076861432,3.2,197.07,197.0,1.5068]
[1735076862634,2.5393,197.05,197.0,1.5068]
[1735076862934,1.6621,197.08,197.0,1.5068]
[1735076863838,2.5394,197.04,197.0,1.5068]
[1735076865537,2.5395,197.03,197.0,1.5068]
[1735076866739,2.5393,197.06,197.0,4.0467]
[1735076866934,2.5393,197.06,197.01,7.92194539]
[1735076867131,10.04954438,197.09,197.03,7.92194539]
[1735076867733,2.5393,197.06,197.03,7.92194539]
[1735076867938,10.04954438,197.09,197.03,7.92194539]
[1735076869037,10.04954438,197.09,197.0,1.5068]
[1735076869242,7.92194539,197.07,197.0,1.5068]
[1735076869537,7.92194539,197.05,197.0,1.5068]
[1735076870047,2.12759899,197.09,197.0,1.5068]
[1735076870339,7.92194539,197.08,197.0,9.42874539]
[1735076871334,7.92194539,197.06,197.0,1.5068]
[1735076871742,7.92194539,197.04,197.0,1.5068]
[1735076872143,12.38071913,197.07,197.0,1.5068]
[1735076872342,12.38071913,197.04,196.93,12.38071913]
[1735076872540,12.38071913,197.04,196.93,1.5824]
[1735076872933,2.5404,196.97,196.93,1.5824]
[1735076873244,12.38071913,197.04,196.93,1.5824]
[1735076873442,2.5405,196.96,196.93,1.5824]
[1735076874643,3.2,197.07,196.93,1.5824]
[1735076874942,2.5402,196.98,196.93,1.5824]
[1735076875534,2.5402,196.98,196.93,4.1232]
[1735076876545,2.5403,196.97,196.93,1.5824]
[1735076878849,2.5404,196.96,196.93,1.5824]
[1735076879349,12.38071913,197.05,196.93,1.5824]
[1735076879847,2.5407,196.94,196.93,1.5824]
[1735076881451,3.2,197.01,196.93,1.5824]
[1735076881452,2.5406,196.95,196.93,1.5824]
[1735076881647,3.2,197.01,196.93,1.5824]
[1735076882151,2.5406,196.96,196.93,1.5824]
[1735076882356,3.2,197.01,196.93,1.5824]
[1735076883561,2.5406,196.95,196.93,1.5824]
[1735076885565,2.5407,196.94,196.93,1.5824]
[1735076887356,4.7382,197.01,196.88,1.578]
[1735076887658,4.7382,197.01,196.88,3.2074]
[1735076888163,2.5411,196.91,196.88,3.2074]
[1735076888459,12.38071913,196.99,196.88,3.2074]
[1735076889565,2.5412,196.91,196.88,3.2074]
[1735076891159,2.5413,196.9,196.88,3.2074]
[1735076893261,2.5411,196.91,196.88,3.2074]
[1735076894166,2.5411,196.91,196.9,7.92929594]
[1735076896069,2.5411,196.91,196.88,1.6294]
[1735076896368,2.5412,196.9,196.89,7.92929594]
[1735076896864,7.92929594,196.97,196.89,7.92929594]
[1735076897064,2.5411,196.91,196.89,7.92929594]
[1735076900672,2.5412,196.9,196.89,7.92929594]
[1735076901481,1.5382,197.01,196.89,7.92929594]
[1735076901769,7.92929594,196.98,196.89,7.92929594]
[1735076902772,2.5412,196.91,196.87,2.5416]
[1735076902973,2.5412,196.91,196.88,7.92929594]
[1735076904072,7.92929594,196.94,196.86,7.92929594]
[1735076904375,2.5413,196.9,196.86,10.47099594]
[1735076904875,2.5413,196.9,196.88,7.92929594]
[1735076909085,2.5415,196.88,196.86,7.92929594]
[1735076910381,7.92929594,196.93,196.83,2.5421]
[1735076910679,7.92929594,196.91,196.82,4.7]
[1735076910983,7.92929594,196.91,196.84,7.92929594]
[1735076911477,7.92929594,196.93,196.84,10.47119594]
[1735076911783,3.2,196.95,196.86,7.92929594]
[1735076911985,2.5409,196.93,196.89,2.5413]
[1735076912583,2.5408,196.93,196.88,10.47069594]
[1735076912781,3.2,196.95,196.88,7.92929594]
[1735076913380,7.92929594,196.94,196.88,7.92929594]
[1735076913575,7.92929594,196.9,196.82,3.1469]
[1735076913882,2.5419,196.85,196.82,9.56029594]
[1735076915086,2.5419,196.85,196.84,7.92929594]
[1735076915585,2.5419,196.85,196.82,1.631]
[1735076915790,2.5421,196.83,196.82,1.631]
[1735076917487,7.92929594,196.86,196.75,20.86793026]
[1735076917684,7.92929594,196.84,196.77,7.92929594]
[1735076917888,2.5428,196.78,196.77,7.92929594]
[1735076918894,7.92929594,196.84,196.77,7.92929594]
[1735076919578,2.5426,196.8,196.77,7.92929594]
[1735076920584,2.5427,196.79,196.77,7.92929594]
[1735076923495,2.5428,196.78,196.77,7.92929594]
[1735076923691,7.92929594,196.84,196.75,1.621]
[1735076923987,2.543,196.77,196.75,9.55029594]
[1735076924291,7.92929594,196.78,196.71,7.92929594]
[1735076924485,11.12929594,196.78,196.71,7.92929594]
[1735076924691,2.5434,196.73,196.71,7.92929594]
[1735076925089,2.5434,196.73,196.7,1.5053]
[1735076925390,2.5434,196.73,196.7,9.43459594]
[1735076925792,2.5434,196.73,196.72,7.92929594]
[1735076927987,2.5433,196.75,196.72,7.92929594]
[1735076928182,3.2,196.81,196.75,7.92929594]
[1735076928386,11.12929594,196.82,196.75,7.92929594]
[1735076928592,2.543,196.77,196.75,7.92929594]
[1735076928895,7.92929594,196.8,196.73,7.92929594]
[1735076929696,2.543,196.77,196.73,7.92929594]
[1735076929890,7.92929594,196.8,196.73,7.92929594]
[1735076931494,7.92929594,196.8,196.72,2.5435]
[1735076931801,2.543,196.76,196.73,7.92929594]
[1735076932995,2.5432,196.75,196.73,7.92929594]
[1735076933396,2.5432,196.75,196.71,7.92929594]
[1735076934196,2.5432,196.75,196.7,1.5053]
[1735076934498,7.92929594,196.76,196.7,1.5053]
[1735076934994,2.5437,196.71,196.7,1.5053]
[1735076935395,7.92929594,196.72,196.6,20.86793026]
[1735076935595,2.5441,196.68,196.63,7.92929594]
[1735076936503,2.5441,196.68,196.63,10.47399594]
[1735076937002,2.5441,196.68,196.65,7.92929594]
[1735076937197,2.5439,196.7,196.65,7.92929594]
[1735076937397,7.92929594,196.72,196.65,7.92929594]
[1735076937894,2.5438,196.7,196.65,7.92929594]
[1735076938098,7.92929594,196.72,196.65,7.92929594]
[1735076938706,2.5436,196.72,196.65,7.92929594]
[1735076938909,7.92929594,196.73,196.65,7.92929594]
[1735076939405,2.5439,196.7,196.65,7.92929594]
[1735076940505,2.5439,196.7,196.65,10.47369594]
[1735076941413,3.2,196.74,196.65,7.92929594]
[1735076941612,7.92929594,196.77,196.69,7.92929594]
[1735076941907,7.92929594,196.77,196.7,1.5739]
[1735076942310,7.92929594,196.79,196.71,7.92929594]
[1735076943113,2.543,196.76,196.72,2.5435]
[1735076943307,2.543,196.76,196.71,7.92929594]
[1735076944012,2.543,196.76,196.71,10.47299594]
[1735076944213,2.5432,196.75,196.71,10.47299594]
[1735076944415,7.92929594,196.79,196.71,10.47299594]
[1735076945516,2.543,196.76,196.71,10.47299594]
[1735076946023,2.5434,196.73,196.7,1.5739]
[1735076947914,2.5436,196.72,196.7,1.5739]
[1735076949418,2.5437,196.71,196.7,1.5739]
[1735076953316,2.5435,196.72,196.7,1.5739]
[1735076953531,7.92929594,196.77,196.7,1.5739]
[1735076954023,2.5435,196.73,196.7,1.5739]
[1735076956022,2.5436,196.72,196.7,1.5739]
[1735076956826,2.5437,196.71,196.7,1.5739]
[1735076957727,11.12929594,196.73,196.65,28.7972262]
[1735076957930,7.92929594,196.71,196.65,9.48649594]
[1735076958233,7.92929594,196.71,196.65,1.5572]
[1735076958822,2.5446,196.65,196.63,20.86793026]
[1735076959027,7.92929594,196.69,196.63,20.86793026]
[1735076959219,7.92929594,196.69,196.63,28.7972262]
[1735076959418,2.5444,196.66,196.63,7.92929594]
[1735076961229,2.5446,196.65,196.61,1.5117]
[1735076961430,2.5446,196.65,196.62,7.92929594]
[1735076963026,7.92929594,196.69,196.62,7.92929594]
[1735076963329,2.5446,196.64,196.62,7.92929594]
[1735076966626,3.2,196.73,196.62,7.92929594]
[1735076966930,5.0855,196.79,196.61,1.5117]
[1735076966931,7.92929594,196.72,196.64,7.92929594]
[1735076967130,7.92929594,196.76,196.68,7.92929594]
[1735076967430,2.5432,196.75,196.72,7.92929594]
[1735076968435,2.5433,196.74,196.72,7.92929594]
[1735076974449,2.5434,196.73,196.71,7.92929594]
[1735076975040,7.92929594,196.78,196.69,9.58539594]
[1735076975235,2.5438,196.71,196.69,9.58539594]
[1735076979352,2.5438,196.7,196.69,9.58539594]
[1735076979739,2.5438,196.7,196.69,1.6561]
[1735076979944,2.5443,196.67,196.65,7.92929594]
[1735076980343,11.12929594,196.74,196.65,7.92929594]
[1735076980539,11.12929594,196.74,196.67,7.92929594]
[1735076980540,2.5436,196.72,196.67,7.92929594]
[1735076980745,11.12929594,196.74,196.67,7.92929594]
[1735076981651,2.544,196.69,196.64,4.1415]
[1735076981850,2.544,196.69,196.67,7.92929594]
[1735076982352,2.544,196.69,196.64,4.1415]
[1735076982552,2.5442,196.68,196.66,7.92929594]
[1735076982749,3.2,196.74,196.66,7.92929594]
[1735076983152,2.5439,196.7,196.66,7.92929594]
[1735076983453,3.2,196.74,196.65,2.5443]
[1735076983650,3.2,196.74,196.67,7.92929594]
[1735076983953,7.92929594,196.73,196.67,7.92929594]
[1735076984149,7.92929594,196.73,196.66,7.92929594]
[1735076984348,2.5437,196.71,196.66,7.92929594]
[1735076984550,3.2,196.74,196.66,7.92929594]
[1735076984750,3.2,196.74,196.65,2.5443]
[1735076984949,3.2,196.74,196.67,7.92929594]
[1735076985347,3.2,196.74,196.64,1.597]
[1735076985651,7.92929594,196.73,196.66,7.92929594]
[1735076985847,7.92929594,196.73,196.64,9.52629594]
[1735076986052,7.92929594,196.71,196.64,1.597]
[1735076986952,7.92929594,196.69,196.64,1.597]
[1735076987149,2.5444,196.65,196.64,1.597]
[1735076988752,3.18,196.68,196.61,7.92929594]
[1735076988953,2.5448,196.62,196.61,7.92929594]
[1735076990359,3.18,196.68,196.57,1.5609]
[1735076990559,2.5449,196.62,196.61,7.92929594]
[1735076997267,2.5449,196.62,196.59,7.92929594]
[1735076998463,2.545,196.61,196.59,7.92929594]
[1735077000259,3.273,196.73,196.59,7.92929594]
[1735077000463,3.273,196.73,196.63,7.92929594]
[1735077000464,3.2,196.72,196.63,7.92929594]
[1735077000665,7.92929594,196.71,196.64,1.6545]
[1735077000866,2.5443,196.66,196.64,1.6545]
[1735077002175,11.12929594,196.71,196.64,4.199]
[1735077002968,2.5439,196.69,196.64,4.199]
[1735077003465,1.5112,196.79,196.67,7.92929594]
[1735077003466,2.5438,196.7,196.67,7.92929594]
[1735077009570,7.92929594,196.73,196.67,7.92929594]
[1735077009878,2.5439,196.69,196.67,7.92929594]
[1735077010174,7.92929594,196.71,196.64,1.6545]
[1735077010377,2.5444,196.66,196.64,1.6545]
[1735077010877,2.5444,196.65,196.64,1.6545]
[1735077013067,3.2,196.69,196.64,1.6545]
[1735077014576,2.5443,196.67,196.64,1.6545]
[1735077015571,2.5443,196.66,196.64,1.6545]
[1735077017284,2.5444,196.65,196.64,1.6545]
[1735077022984,3.0801,196.79,196.64,9.58379594]
[1735077023183,11.10929594,196.78,196.7,7.92929594]
[1735077023385,11.10929594,196.78,196.69,2.5439]
[1735077023386,2.5433,196.74,196.69,2.5439]
[1735077023576,11.10929594,196.78,196.65,3.0585]
[1735077023885,2.5436,196.72,196.69,7.92929594]
[1735077024782,7.92929594,196.74,196.65,10.98779594]
[1735077024980,3.18,196.76,196.65,10.98779594]
[1735077024981,7.92929594,196.72,196.65,7.92929594]
[1735077025985,2.5439,196.69,196.65,7.92929594]
[1735077026386,7.92929594,196.72,196.65,7.92929594]
[1735077027185,2.5438,196.7,196.65,7.92929594]
[1735077030387,7.92929594,196.72,196.65,7.92929594]
[1735077030588,2.5439,196.69,196.65,7.92929594]
[1735077030885,2.5439,196.69,196.67,7.92929594]
[1735077031584,2.5439,196.69,196.65,7.92929594]
[1735077031784,7.92929594,196.72,196.65,7.92929594]
[1735077032586,2.5442,196.67,196.65,7.92929594]
[1735077037987,2.5442,196.67,196.64,1.6545]
[1735077038193,2.5444,196.66,196.64,1.6545]
[1735077039990,2.5442,196.67,196.64,1.6545]
[1735077044797,3.18,196.7,196.62,2.5448]
[1735077044987,7.92929594,196.68,196.62,2.5448]
[1735077045693,7.92929594,196.68,196.61,1.6194]
[1735077045894,2.5443,196.66,196.61,4.1643]
[1735077047098,7.92929594,196.68,196.61,4.1643]
[1735077047298,2.5445,196.65,196.61,4.1643]
[1735077047501,2.5445,196.65,196.61,1.6194]
[1735077048492,7.92929594,196.68,196.61,1.6194]
[1735077048699,2.5447,196.63,196.61,1.6194]
[1735077049488,7.92929594,196.68,196.61,1.6194]
[1735077049693,2.5445,196.65,196.61,4.1643]
[1735077049996,3.18,196.7,196.62,7.92929594]
[1735077050195,2.5443,196.67,196.62,10.47399594]
[1735077050494,11.10929594,196.7,196.62,10.47399594]
[1735077051495,2.5444,196.66,196.62,10.47399594]
[1735077052997,2.5446,196.64,196.61,1.6194]
[1735077053197,7.92929594,196.68,196.61,1.6194]
[1735077053802,2.5445,196.65,196.61,4.1644]
[1735077054301,7.92929594,196.68,196.62,7.92929594]
[1735077054507,2.5443,196.66,196.62,10.47399594]
[1735077056515,2.5445,196.65,196.62,7.92929594]
[1735077059114,2.5445,196.65,196.62,10.47409594]
[1735077066429,2.5446,196.64,196.61,1.6194]
[1735077067119,2.5446,196.64,196.61,4.1644]
[1735077067718,2.5448,196.62,196.61,1.6194]
[1735077072932,2.5447,196.63,196.61,1.6194]
[1735077074829,2.5435,196.73,196.62,2.5447]
[1735077075033,84.76111037,196.81,196.62,10.47399594]
[1735077075034,7.92929594,196.69,196.62,10.47399594]
[1735077075433,2.5443,196.67,196.63,2.5446]
[1735077075732,1.6084,196.76,196.66,7.92929594]
[1735077075928,7.92929594,196.74,196.66,7.92929594]
[1735077076434,9.53769594,196.76,196.68,7.92929594]
[1735077076636,7.92929594,196.76,196.69,1.5708]
[1735077077434,2.5433,196.74,196.69,1.5708]
[1735077078640,7.92929594,196.76,196.69,1.5708]
[1735077078836,1.6084,196.8,196.7,7.92929594]
[1735077079039,11.10929594,196.79,196.69,1.5708]
[1735077079336,11.10929594,196.79,196.7,7.92929594]
[1735077079538,7.92929594,196.77,196.7,7.92929594]
[1735077079734,7.92929594,196.78,196.72,2.5434]
[1735077080336,7.92929594,196.78,196.7,2.5437]
[1735077080540,7.92929594,196.76,196.69,1.5708]
[1735077081241,2.543,196.77,196.71,2.5437]
[1735077082233,2.543,196.77,196.72,2.5435]
[1735077083133,1.5935,196.86,196.76,2.543]
[1735077083339,7.92929594,196.84,196.76,7.92929594]
[1735077083538,7.92929594,196.84,196.77,1.5945]
[1735077083732,10.47129594,196.84,196.79,2.5426]
[1735077083939,7.92929594,196.84,196.77,1.5945]
[1735077084332,2.5422,196.83,196.77,4.1374]
[1735077084534,7.92929594,196.82,196.77,1.5945]
[1735077085140,7.92929594,196.8,196.77,1.5945]
[1735077086540,2.5427,196.79,196.77,1.5945]
[1735077087841,10.47179594,196.8,196.77,1.5945]
[1735077088344,2.5425,196.8,196.77,1.5945]
[1735077089238,7.92929594,196.81,196.77,1.5945]
[1735077089445,2.5428,196.78,196.77,1.5945]
[1735077090644,2.5431,196.76,196.71,10.47289594]
[1735077090844,7.92929594,196.79,196.71,7.92929594]
[1735077091142,7.92929594,196.77,196.71,7.92929594]
[1735077092043,2.5433,196.75,196.7,1.5767]
[1735077092736,2.5433,196.75,196.71,7.92929594]
[1735077093941,2.543,196.77,196.72,2.5435]
[1735077094646,2.543,196.77,196.73,7.92929594]
[1735077095247,2.5427,196.79,196.74,2.5433]
[1735077096251,2.5428,196.78,196.74,2.5433]
[1735077097853,7.92929594,196.81,196.73,7.92929594]
[1735077098849,2.5429,196.77,196.73,7.92929594]
[1735077100046,7.92929594,196.81,196.73,7.92929594]
[1735077100344,2.5431,196.76,196.73,7.92929594]
[1735077102453,7.92929594,196.77,196.7,1.5767]
[1735077102644,5.0835,196.86,196.7,1.5767]
[1735077102645,7.92929594,196.75,196.7,1.5767]
[1735077102846,2.5437,196.71,196.7,1.5767]
[1735077104647,2.5442,196.67,196.66,7.92929594]
[1735077104854,2.5442,196.67,196.64,9.51569594]
[1735077105046,7.92929594,196.73,196.64,12.06019594]
[1735077105650,2.544,196.69,196.64,12.06019594]
[1735077106351,2.5441,196.68,196.64,12.06019594]
[1735077108755,7.92929594,196.73,196.64,12.06019594]
[1735077108953,7.92929594,196.73,196.64,9.51569594]
[1735077109156,7.92929594,196.71,196.64,9.51569594]
[1735077109456,2.5444,196.66,196.64,9.51569594]
[1735077109755,7.92929594,196.71,196.64,9.51569594]
[1735077109957,7.92929594,196.69,196.64,1.5864]
[1735077110158,11.10929594,196.69,196.64,1.5864]
[1735077111059,2.5444,196.65,196.64,1.5864]
[1735077113052,11.10929594,196.69,196.64,1.5864]
[1735077113053,2.5443,196.67,196.64,1.5864]
[1735077113658,11.10929594,196.69,196.64,1.5864]
[1735077114455,2.5441,196.68,196.64,1.5864]
[1735077114656,11.10929594,196.69,196.64,1.5864]
[1735077115051,2.5444,196.65,196.64,1.5864]
[1735077117558,1.5174,196.73,196.64,9.51569594]
[1735077117752,9.44669594,196.73,196.66,7.92929594]
[1735077118060,7.92929594,196.73,196.66,7.92929594]
[1735077118262,2.5439,196.7,196.66,7.92929594]
[1735077119159,2.5435,196.72,196.68,7.92929594]
[1735077120451,7.92929594,196.75,196.68,7.92929594]
[1735077120651,11.10929594,196.77,196.7,7.92929594]
[1735077120854,7.92929594,196.77,196.7,7.92929594]
[1735077121059,2.5432,196.75,196.7,7.92929594]
[1735077121554,2.5436,196.72,196.7,7.92929594]
[1735077121760,2.5436,196.72,196.68,7.92929594]
[1735077123360,7.92929594,196.77,196.68,7.92929594]
[1735077123661,2.5437,196.71,196.68,7.92929594]
[1735077129264,2.5441,196.68,196.67,7.92929594]
[1735077129455,7.92929594,196.74,196.67,7.92929594]
[1735077129865,2.5439,196.7,196.67,7.92929594]
[1735077130666,2.544,196.69,196.67,7.92929594]
[1735077130858,7.92929594,196.74,196.67,7.92929594]
[1735077132361,7.92929594,196.72,196.64,1.5864]
[1735077132561,3.18,196.71,196.64,1.5864]
[1735077132762,5.7237,196.71,196.67,7.92929594]
[1735077135167,2.5437,196.71,196.67,7.92929594]
[1735077136065,11.10929594,196.75,196.67,7.92929594]
[1735077136268,2.5438,196.7,196.67,7.92929594]
[1735077137669,3.3032,196.8,196.69,7.92929594]
[1735077137971,7.92929594,196.79,196.71,7.92929594]
[1735077138266,7.92929594,196.79,196.65,1.5702]
[1735077138267,7.92929594,196.81,196.75,7.92929594]
[1735077138465,7.92929594,196.83,196.77,7.92929594]
[1735077138769,2.5424,196.81,196.77,7.92929594]
[1735077138971,7.92929594,196.83,196.75,7.92929594]
[1735077139375,11.10929594,196.83,196.75,10.47239594]
[1735077139566,7.92929594,196.83,196.75,10.47239594]
[1735077139766,11.10929594,196.83,196.75,10.47239594]
[1735077141076,2.5426,196.8,196.75,10.47239594]
[1735077143775,2.5424,196.81,196.76,2.5429]
[1735077143976,7.92929594,196.83,196.75,7.92929594]
[1735077144670,42.50243355,196.84,196.75,7.92929594]
[1735077144875,7.92929594,196.86,196.79,2.5425]
[1735077145077,11.10929594,196.86,196.8,1.5088]
[1735077146174,1.12709691,196.89,196.76,10.47219594]
[1735077146175,2.5425,196.81,196.76,10.47219594]
[1735077146382,2.5425,196.81,196.78,1.5088]
[1735077148689,2.5423,196.82,196.78,1.5088]
[1735077151783,2.5423,196.82,196.78,4.0516]
[1735077154600,7.92929594,196.84,196.78,1.5088]
[1735077154893,2.5424,196.81,196.78,1.5088]
[1735077157094,2.5424,196.81,196.78,4.0516]
[1735077157291,2.5424,196.81,196.78,1.5088]
[1735077159095,2.5424,196.81,196.78,4.0515]
[1735077160797,2.5426,196.79,196.78,1.5088]
[1735077162193,7.92929594,196.8,196.74,2.5432]
[1735077162399,2.5428,196.78,196.73,11.99949594]
[1735077163187,2.5428,196.78,196.73,9.45609594]
[1735077163498,2.5428,196.78,196.74,2.5432]
[1735077163888,7.92929594,196.8,196.74,2.5432]
[1735077165498,2.5428,196.78,196.74,2.5432]
[1735077168302,3.18,196.84,196.77,7.92929594]
[1735077168498,11.10929594,196.84,196.77,7.92929594]
[1735077168699,11.10929594,196.84,196.73,1.5268]
[1735077168700,2.5425,196.81,196.76,2.543]
[1735077169101,11.10929594,196.84,196.76,2.543]
[1735077169500,2.5426,196.8,196.76,2.543]
[1735077170404,2.5426,196.8,196.75,7.92929594]
[1735077170598,2.5426,196.8,196.75,10.47239594]
[1735077171700,7.92929594,196.82,196.75,10.47239594]
[1735077171906,2.5426,196.79,196.75,2.5431]
[1735077176711,2.5425,196.81,196.76,2.543]
[1735077177013,7.92929594,196.82,196.76,2.543]
[1735077177307,7.92929594,196.82,196.74,7.92929594]
[1735077177910,7.92929594,196.82,196.71,1.6331]
[1735077178208,7.92929594,196.8,196.72,7.92929594]
[1735077178409,2.5428,196.78,196.73,2.5433]
[1735077178605,7.92929594,196.8,196.72,7.92929594]
[1735077179808,7.92929594,196.82,196.74,7.92929594]
[1735077180007,1.6294,196.88,196.8,7.92929594]
[1735077180210,7.92929594,196.88,196.81,1.5704]
[1735077180418,2.542,196.85,196.81,1.5704]
[1735077181710,7.92929594,196.86,196.81,1.5704]
[1735077181909,2.542,196.84,196.81,1.5704]
[1735077182917,7.92929594,196.86,196.81,1.5704]
[1735077183711,2.542,196.84,196.81,1.5704]
[1735077187718,2.5422,196.82,196.81,1.5704]
[1735077188115,7.92929594,196.82,196.76,20.86793026]
[1735077188413,2.5429,196.77,196.75,1.5284]
[1735077189118,2.543,196.76,196.75,1.5284]
[1735077190318,7.92929594,196.83,196.75,9.45769594]